fUSD/lending_fUSD_20250220
["ID","MTS","AMOUNT","RATE_DAILY","PERIOD"]
[353769844,1740027043106,-2000.0,0.00010435,2]
[353769846,1740027043116,-463.85,0.00010435,2]
[353769848,1740027043126,-150.99,0.00010435,2]
[353769850,1740027043135,-4364.19713957,0.00010435,2]
[353769852,1740027043146,-271.92,0.00010435,2]
[353769854,1740027043158,-5363.87286043,0.00010435,2]
[353769856,1740027043167,-150.99,0.00010435,2]
[353769858,1740027043176,-14050.81321256,0.00010435,2]
[353769861,1740027043197,-2843.72038708,0.00010435,2]
[353770123,1740027045859,-8050.29021513,0.00010435,2]
[353770125,1740027045871,-4200.0,0.00010435,2]
[353770127,1740027045882,-723.8300161,0.00010435,2]
[353770130,1740027045895,-1812.06616913,0.00010435,2]
[353770132,1740027045908,-1318.23,0.00010435,2]
[353770134,1740027045918,-1519.99,0.00010435,2]
[353770136,1740027045928,-1024.63,0.00010435,2]
[353770138,1740027045938,-9660.25,0.00010435,2]
[353770140,1740027045948,-1500.0,0.00010438,2]
[353770142,1740027045958,-1601.24139103,0.00010438,2]
[353770144,1740027045969,-2719.00860897,0.00010438,2]
[353770146,1740027045979,-299.99,0.00010438,2]
[353770148,1740027045989,-324.26,0.00010449,2]
[353770150,1740027045998,-289.82594836,0.00010465,2]
[353770152,1740027046008,-115.91544267,0.00010632,2]
[353770155,1740027046020,-52.19455733,0.00010632,2]
[353770157,1740027046029,-180.78,0.00010657,2]
[353770159,1740027046039,-289.82594837,0.00010719,2]
[353770161,1740027046048,-180.78,0.00010728,2]
[353770163,1740027046058,-526.56,0.00010793,2]
[353770165,1740027046067,-180.78,0.00010799,2]
[353770167,1740027046076,-180.78,0.0001087,2]
[353770169,1740027046086,-190.57,0.00010976,2]
[353770171,1740027046096,-150.0,0.00010999,2]
[353770173,1740027046105,-500.0,0.00010999,2]
[353770175,1740027046115,-150.0,0.00010999,2]
[353770177,1740027046125,-500.0,0.00010999,2]
[353770179,1740027046134,-500.0,0.00010999,2]
[353770181,1740027046144,-224.0,0.00010999,2]
[353770183,1740027046154,-550.0,0.00011,2]
[353770185,1740027046163,-240.87173725,0.00011,2]
[353770187,1740027046175,-315.03329191,0.00011,2]
[353770189,1740027046184,-1000.0,0.00011009,2]
[353770191,1740027046194,-200.0,0.00011017,2]
[353770193,1740027046203,-250.0,0.00011068,2]
[353770195,1740027046212,-197.54,0.00011115,2]
[353770197,1740027046221,-731.51,0.00011119,2]
[353770199,1740027046231,-23900.0,0.00011119,2]
[353770201,1740027046241,-174.06,0.00011186,2]
[353770203,1740027046250,-150.0,0.00011244,2]
[353770205,1740027046259,-150.0,0.00011244,2]
[353770207,1740027046269,-150.81391421,0.00011244,2]
[353770209,1740027046278,-150.0,0.00011244,2]
[353770211,1740027046287,-150.0,0.00011244,2]
[353770213,1740027046297,-555.90502887,0.00011245,2]
[353770216,1740027046306,-150.0,0.00011261,2]
[353770218,1740027046316,-150.0,0.00011278,2]
[353770220,1740027046325,-150.0,0.00011294,2]
[353770222,1740027046334,-150.0,0.00011306,2]
[353770223,1740027046344,-150.0,0.00011311,2]
[353770225,1740027046353,-150.0,0.00011317,2]
[353770227,1740027046363,-150.0,0.00011328,2]
[353770229,1740027046373,-150.0,0.00011345,2]
[353770231,1740027046382,-150.0,0.00011362,2]
[353770234,1740027046392,-150.0,0.00011369,2]
[353770236,1740027046401,-150.0,0.00011379,2]
[353770237,1740027046410,-150.0,0.00011391,2]
[353770239,1740027046420,-150.0,0.00011396,2]
[353770241,1740027046429,-150.0,0.00011413,2]
[353770243,1740027046439,-150.0,0.00011422,2]
[353770245,1740027046448,-150.0,0.0001143,2]
[353770248,1740027046458,-150.0,0.00011431,2]
[353770249,1740027046467,-150.0,0.00011446,2]
[353770250,1740027046476,-150.0,0.00011463,2]
[353770251,1740027046485,-150.0,0.00011464,2]
[353770252,1740027046495,-829.47,0.00011466,2]
[353770253,1740027046508,-150.0,0.0001148,2]
[353770254,1740027046517,-150.0,0.00011494,2]
[353770255,1740027046527,-150.0,0.00011497,2]
[353770256,1740027046536,-433.47,0.00011507,2]
[353770257,1740027046547,-168.11,0.0001151,2]
[353770258,1740027046556,-150.0,0.00011514,2]
[353770259,1740027046566,-150.0,0.00011531,2]
[353770261,1740027046575,-150.0,0.00011538,2]
[353770263,1740027046585,-150.0,0.00011548,2]
[353770265,1740027046594,-150.0,0.00011556,2]
[353770267,1740027046603,-150.0,0.00011565,2]
[353770269,1740027046614,-150.0,0.00011581,2]
[353770271,1740027046623,-555.90502887,0.0001159,2]
[353770274,1740027046633,-150.0,0.00011598,2]
[353770275,1740027046643,-150.0,0.00011601,2]
[353770277,1740027046653,-150.0,0.00011611,2]
[353770280,1740027046662,-150.0,0.00011615,2]
[353770282,1740027046672,-150.0,0.00011619,2]
[353770284,1740027046682,-150.0,0.00011632,2]
[353770286,1740027046691,-150.0,0.00011649,2]
[353770287,1740027046701,-150.0,0.00011666,2]
[353770290,1740027046710,-150.0,0.00011681,2]
[353770291,1740027046719,-150.0,0.00011683,2]
[353770294,1740027046729,-150.0,0.00011685,2]
[353770296,1740027046738,-150.0,0.000117,2]
[353770298,1740027046748,-150.0,0.00011717,2]
[353770300,1740027046757,-150.0,0.00011733,2]
[353770302,1740027046766,-150.0,0.00011744,2]
[353770304,1740027046776,-150.0,0.0001175,2]
[353770305,1740027046785,-324.26,0.00011755,2]
[353770307,1740027046794,-150.0,0.00011758,2]
[353770309,1740027046803,-150.0,0.00011767,2]
[353770311,1740027046812,-150.0,0.00011779,2]
[353770313,1740027046821,-150.0,0.00011784,2]
[353770316,1740027046832,-300.0,0.000118,4]
[353770318,1740027046841,-150.0,0.00011801,2]
[353770320,1740027046850,-150.0,0.00011806,2]
[353770322,1740027046860,-150.0,0.00011818,2]
[353770324,1740027046869,-167.9,0.00011826,2]
[353770326,1740027046879,-150.0,0.00011832,2]
[353770328,1740027046888,-150.0,0.00011835,2]
[353770330,1740027046898,-383.7493,0.00011836,2]
[353770332,1740027046910,-150.0,0.00011852,2]
[353770334,1740027046920,-150.0,0.00011868,2]
[353770336,1740027046929,-150.0,0.00011868,2]
[353770338,1740027046938,-500.0,0.00011869,2]
[353770340,1740027046949,-500.0,0.00011869,2]
[353770342,1740027046958,-503.40936736,0.00011869,2]
[353770344,1740027046968,-494.19807051,0.00011869,2]
[353770346,1740027046978,-2038.632,0.00011869,2]
[353770348,1740027046989,-1281.302,0.00011869,2]
[353770350,1740027046998,-1797.625,0.00011869,2]
[353770352,1740027047007,-492.88827707,0.00011869,2]
[353770354,1740027047020,-295.11172293,0.00011869,2]
[353770356,1740027047029,-1424.0,0.00011869,2]
[353770358,1740027047038,-1274.07,0.00011869,2]
[353770360,1740027047048,-914.178,0.00011869,2]
[353770362,1740027047058,-3435.99921688,0.00011869,2]
[353770365,1740027047070,-618.89678312,0.00011869,2]
[353770367,1740027047080,-541.735,0.00011869,2]
[353770369,1740027047089,-151.667,0.00011869,2]
[353770371,1740027047099,-1019.496,0.00011869,2]
[353770373,1740027047109,-3955.388,0.00011869,2]
[353770375,1740027047118,-1116.34,0.00011869,2]
[353770377,1740027047127,-150.0,0.00011885,2]
[353770379,1740027047137,-600.0,0.000119,4]
[353770381,1740027047146,-150.0,0.00011902,2]
[353770383,1740027047155,-150.0,0.00011905,2]
[353770385,1740027047165,-150.0,0.00011919,2]
[353770387,1740027047174,-150.0,0.00011931,2]
[353770389,1740027047184,-555.90502887,0.00011934,2]
[353770391,1740027047196,-150.0,0.00011936,2]
[353770394,1740027047206,-416.63913455,0.00011951,2]
[353770396,1740027047216,-500.0,0.00011951,2]
[353770397,1740027047225,-150.0,0.00011953,2]
[353770400,1740027047235,-150.0,0.00011958,2]
[353770402,1740027047244,-150.0,0.0001197,2]
[353770404,1740027047253,-150.0,0.00011979,2]
[353770405,1740027047262,-150.0,0.00011987,2]
[353770407,1740027047272,-150.0,0.00011993,2]
[353770410,1740027047282,-1522.0,0.00012,2]
[353770412,1740027047291,-231097.0,0.00012,2]
[353770414,1740027047301,-150.0,0.00012004,2]
[353770416,1740027047311,-150.0,0.0001202,2]
[353770418,1740027047321,-500.0,0.00012033,2]
[353770420,1740027047330,-152.0,0.00012037,3]
[353770422,1740027047339,-150.0,0.00012037,2]
[353770424,1740027047349,-150.0,0.00012052,2]
[353770426,1740027047358,-1663.16,0.00012054,2]
[353770428,1740027047368,-150.0,0.00012054,2]
[353770430,1740027047377,-150.0,0.00012056,2]
[353770432,1740027047387,-150.0,0.00012071,2]
[353770434,1740027047396,-150.0,0.00012088,2]
[353770436,1740027047406,-150.0,0.00012105,2]
[353770438,1740027047415,-500.0,0.00012115,2]
[353770440,1740027047424,-150.0,0.00012118,2]
[353770442,1740027047434,-150.0,0.00012122,2]
[353770444,1740027047443,-150.0,0.00012126,2]
[353770446,1740027047453,-150.0,0.00012136,2]
[353770448,1740027047463,-150.0,0.00012139,2]
[353770450,1740027047473,-150.0,0.00012155,2]
[353770452,1740027047482,-150.0,0.00012172,2]
[353770454,1740027047491,-150.0,0.00012181,2]
[353770456,1740027047501,-150.0,0.00012189,2]
[353770458,1740027047511,-500.0,0.00012197,2]
[353770460,1740027047522,-150.0,0.00012199,2]
[353770462,1740027047532,-150.0,0.00012206,2]
[353770464,1740027047542,-150.0,0.00012223,2]
[353770466,1740027047551,-150.0,0.0001224,2]
[353770467,1740027047560,-150.0,0.00012243,2]
[353770468,1740027047570,-1145.80854579,0.0001225,2]
[353770469,1740027047580,-348.5716596,0.0001225,2]
[353770470,1740027047589,-150.0,0.00012257,2]
[353770471,1740027047599,-150.0,0.00012273,2]
[353770472,1740027047609,-150.0,0.00012274,2]
[353770473,1740027047619,-555.90502887,0.00012279,2]
[353770474,1740027047628,-500.0,0.0001228,2]
[353770475,1740027047638,-150.0,0.00012291,2]
[353770477,1740027047648,-150.0,0.00012306,2]
[353770479,1740027047658,-150.0,0.00012307,2]
[353770481,1740027047668,-1405.67525456,0.00012313,2]
[353770483,1740027047678,-150.0,0.00012315,2]
[353770484,1740027047687,-150.0,0.00012324,2]
[353770485,1740027047696,-1663.16,0.00012328,2]
[353770486,1740027047706,-166.372096,0.0001233,2]
[353770487,1740027047716,-150.0,0.00012341,2]
[353770488,1740027047726,-150.0,0.00012346,2]
[353770489,1740027047736,-150.0,0.00012358,2]
[353770490,1740027047746,-500.0,0.00012362,2]
[353770491,1740027047756,-150.0,0.00012368,2]
[353770493,1740027047766,-150.0,0.00012375,2]
[353770495,1740027047776,-1000.0,0.00012385,2]
[353770497,1740027047786,-168.11,0.00012387,2]
[353770499,1740027047796,-150.0,0.00012392,2]
[353770500,1740027047805,-2950.6,0.00012397,2]
[353770502,1740027047816,-10334.829237,0.000124,2]
[353770503,1740027047825,-279.29101677,0.000124,2]
[353770504,1740027047835,-500.0,0.000124,2]
[353770505,1740027047845,-2000.0,0.000124,2]
[353770506,1740027047855,-500.0,0.000124,2]
[353770507,1740027047867,-200.0,0.000124,2]
[353770508,1740027047877,-884.41293904,0.000124,2]
[353770509,1740027047888,-159.27733395,0.000124,2]
[353770510,1740027047899,-150.0,0.00012409,2]
[353770511,1740027047910,-150.0,0.0001242,2]
[353770512,1740027047921,-150.0,0.00012426,2]
[353770513,1740027047931,-150.0,0.00012431,2]
[353770514,1740027047944,-150.0,0.00012443,2]
[353770515,1740027047960,-500.0,0.00012444,2]
[353770516,1740027047970,-150.0,0.00012459,2]
[353770517,1740027047980,-17815.0,0.00012463,7]
[353770518,1740027047990,-215.0,0.00012466,2]
[353770519,1740027048000,-150.0,0.00012476,2]
[353770520,1740027048010,-150.0,0.00012493,2]
[353770521,1740027048021,-150.0,0.00012493,2]
[353770522,1740027048031,-150.0,0.00012493,2]
[353770523,1740027048041,-150.0,0.00012493,2]
[353770524,1740027048051,-288.04856593,0.00012496,2]
[353770525,1740027048060,-447.035464,0.00012496,2]
[353770526,1740027048070,-379.67752599,0.00012496,2]
[353770527,1740027048080,-31332.40329011,0.00012497,2]
[353770528,1740027048090,-746.84,0.00012499,2]
[353770529,1740027048099,-1184.0,0.00012499,2]
[353770530,1740027048108,-131373.00077913,0.000125,3]
[353770531,1740027048123,-566.55209972,0.000125,3]
[353770532,1740027048135,-469.76278846,0.000125,3]
[353770533,1740027304060,1012.79661104,0.00016438,60]
[353770534,1740027630009,164.84,8.767e-05,2]
[353770597,1740027924461,500.0,0.00012379,30]
[353770598,1740027924700,513.54873281,0.00012461,30]
[353770747,1740028232101,-831.92,9.486e-05,2]
[353770749,1740028232111,-170.62857642,0.00010337,2]
[353770751,1740028232120,-300.0,0.00010436,2]
[353770753,1740028232130,-14458.5,0.00010437,2]
[353770755,1740028232139,-200.0,0.00010437,2]
[353770757,1740028232149,-550.0,0.00011,2]
[353770758,1740028232158,-173.14,0.00011031,2]
[353770760,1740028232168,-1496.56,0.00011033,2]
[353770762,1740028232177,-721.52,0.00011102,2]
[353770764,1740028232187,-1000.0,0.00011146,2]
[353770766,1740028232196,-500.0,0.00011251,2]
[353770768,1740028232206,-375.59,0.00011301,2]
[353770770,1740028232215,-299.99,0.00011301,2]
[353770772,1740028232224,-150.99,0.00011301,2]
[353770774,1740028232234,-150.0,0.00011315,2]
[353770776,1740028232244,-189.5,0.00011316,2]
[353770777,1740028232254,-150.99,0.00011316,2]
[353770778,1740028232264,-999.99,0.00011316,2]
[353770779,1740028232277,-9999.99,0.00011316,2]
[353770780,1740028232287,-420.0,0.00011474,2]
[353770781,1740028232297,-1157.19,0.00011507,2]
[353770782,1740028232307,-831.92,0.0001175,2]
[353770783,1740028232316,-200.0,0.000118,4]
[353770784,1740028232326,-687.49562052,0.000119,2]
[353770785,1740028232338,-2085.50597948,0.000119,2]
[353770786,1740028232347,-500.0,0.000119,4]
[353770787,1740028232357,-94.34655791,0.00011927,2]
[353770788,1740028232368,-55.65344209,0.00011927,2]
[353770789,1740028232378,-500.0,0.00011927,2]
[353770790,1740028232387,-3657.69350996,0.00011951,2]
[353770791,1740028232398,-1478.34689998,0.00011951,2]
[353770792,1740028232410,-754.11,0.00011951,2]
[353770795,1740028232431,-421.76759006,0.00011951,2]
[353770797,1740028232441,-183.43241004,0.00011951,2]
[353770799,1740028232454,-113.99258996,0.00011951,2]
[353770801,1740028232464,-1424.0,0.00012046,2]
[353770803,1740028232474,-227.21313467,0.00012054,2]
[353770824,1740028237931,-1422.21686533,0.00012054,2]
[353770825,1740028237941,-150.0,0.00012201,2]
[353770826,1740028237953,-985.84553181,0.00012212,2]
[353770827,1740028237987,-45.47944484,0.00012212,2]
[353770828,1740028237997,-1105.54827141,0.00012212,2]
[353770829,1740028238007,-303.29482725,0.0001225,2]
[353770830,1740028238019,-711.81387597,0.0001225,2]
[353770831,1740028238029,-204.52612403,0.0001225,2]
[353770832,1740028238041,-27.85498237,0.0001225,2]
[353770833,1740028238050,-1068.67215308,0.0001225,2]
[353770834,1740028238060,-919.5012,0.0001228,2]
[353770835,1740028238071,-2500.0,0.0001228,2]
[353770836,1740028238081,-1649.43,0.00012328,2]
[353770837,1740028238090,-261.09002156,0.00012379,2]
[353770838,1740028238100,-214.93581098,0.00012379,2]
[353770839,1740028238110,-300.28695296,0.00012379,2]
[353770840,1740028238121,-513.94954676,0.00012379,2]
[353770841,1740028238131,-239.39230008,0.00012379,2]
[353770842,1740028238141,-500.0,0.00012379,2]
[353770843,1740028238151,-500.0,0.00012379,2]
[353770844,1740028238160,-500.0,0.00012379,2]
[353770845,1740028238170,-519.90655324,0.00012379,2]
[353770846,1740028238180,-214.12782658,0.00012379,2]
[353770847,1740028238190,-500.0,0.00012379,2]
[353770848,1740028238200,-500.0,0.00012379,2]
[353770849,1740028238210,-500.0,0.00012379,2]
[353770850,1740028238219,-500.0,0.00012379,2]
[353770851,1740028238229,-500.0,0.00012379,2]
[353770852,1740028238239,-500.0,0.00012379,2]
[353770853,1740028238248,-500.0,0.00012379,2]
[353770854,1740028238258,-4385.30194069,0.0001238,2]
[353770858,1740028238300,-28178.96688687,0.0001238,2]
[353770859,1740028238313,-963.92,0.0001238,2]
[353770861,1740028238324,-1522.85,0.0001238,2]
[353770863,1740028238336,-321.1250003,0.0001238,2]
[353770865,1740028238347,-778.83225868,0.0001238,2]
[353771416,1740028246135,-3371.54746475,0.00011449,2]
[353771418,1740028246145,-154.9207376,0.0001225,2]
[353771420,1740028246155,-92639.09623858,0.0001238,2]
[353771424,1740028469650,169.0,0.0002,120]
[353771426,1740028484120,300.0,0.0002,120]
[353771428,1740028731415,160.78,8.767e-05,2]
[353771429,1740028976344,328.0,0.000165,60]
[353771430,1740029060689,154.85,0.000165,60]
[353771431,1740029184077,154.84,0.000165,60]
[353771432,1740029187941,162.32,8.932e-05,2]
[353771457,1740029432230,-807.49,9.567e-05,2]
[353771458,1740029432240,-150.0,9.999e-05,2]
[353771459,1740029432249,-25426.56152172,0.0001,2]
[353771460,1740029432346,-7584.80622634,0.0001,2]
[353771461,1740029432403,-4628.69610927,0.0001,2]
[353771462,1740029432465,-296.880003,0.0001,2]
[353771463,1740029432478,-94473.24789918,0.0001,2]
[353771464,1740029432526,-45795.34101178,0.0001,2]
[353771495,1740029438336,-1003.09347097,0.0001,2]
[353771717,1740029441117,-33527.79094474,0.0001,2]
[353772219,1740029609638,865.1,8.56e-05,2]
[353772220,1740029799417,376.05,8.767e-05,2]
[353772222,1740029888237,-150.0,9.999e-05,2]
[353772223,1740029888260,-300.0,9.999e-05,2]
[353772224,1740029888284,-4550.0,0.0001,2]
[353772225,1740029889585,-5000.0,0.0001,2]
[353772226,1740029889901,-5000.0,0.0001,2]
[353772227,1740029890350,-5000.0,0.0001,2]
[353772228,1740029890753,-5000.0,0.0001,2]
[353772229,1740029891185,-5000.0,0.0001,2]
[353772230,1740029902720,-1000.0,0.0001,2]
[353772231,1740029903415,-1000.0,0.0001,2]
[353772232,1740029903760,-1000.0,0.0001,2]
[353772233,1740029904133,-1000.0,0.0001,2]
[353772234,1740030120075,-5000.0,0.00016,30]
[353772235,1740030142922,-5000.0,0.00016,30]
[353772236,1740030143781,-16.87710794,0.00016,30]
[353772237,1740030203171,-1513.13,0.00016658,30]
[353772238,1740030203195,-3486.87,0.0001688,30]
[353772239,1740030206421,-5000.0,0.0001688,30]
[353772240,1740030207732,-5000.0,0.0001688,30]
[353772241,1740030208771,-5000.0,0.0001688,30]
[353772242,1740030211651,162.32,8.504e-05,2]
[353772243,1740030220313,-3000.0,0.0001688,30]
[353772244,1740030253037,-5000.0,0.0001688,30]
[353772252,1740030632251,-150.0,9.999e-05,2]
[353772253,1740030632261,-300.0,9.999e-05,2]
[353772254,1740030632270,-848.24234568,0.0001,2]
[353772255,1740030632282,-1028.79,0.0001,2]
[353772256,1740030632365,-254.33428482,0.0001,2]
[353772257,1740030632377,-7715.60334819,0.0001,2]
[353772258,1740030632426,-9634.90483949,0.0001,2]
[353772259,1740030632438,-793.07877249,0.0001,2]
[353772260,1740030632451,-334.60004339,0.0001,2]
[353772261,1740030632486,-422.36322538,0.0001,2]
[353772262,1740030632547,-5300.0523314,0.0001,2]
[353772263,1740030632558,-868.79832202,0.0001,2]
[353772264,1740030632569,-706.92122751,0.0001,2]
[353772265,1740030632580,-4581.33920034,0.0001,2]
[353772266,1740030632591,-229623.39094648,0.0001,2]
[353772267,1740030632610,-922.539993,0.0001,2]
[353772268,1740030632620,-1143.87326722,0.0001,2]
[353772335,1740030638567,-5200.0,0.0001,2]
[353772336,1740030638578,-506.4,0.0001,2]
[353772338,1740030638589,-875.0,0.0001,2]
[353772340,1740030638599,-839.93189631,0.0001,2]
[353772342,1740030638611,-15330.82186738,0.0001,2]
[353772344,1740030638620,-194.43578077,0.0001,2]
[353772346,1740030638629,-615.04666287,0.0001,2]
[353772348,1740030638638,-1595.35639,0.0001,2]
[353772350,1740030638647,-23261.00718923,0.0001,2]
[353772352,1740030638656,-420.60711233,0.00010362,2]
[353772354,1740030638665,-6828.39,0.00010557,2]
[353772356,1740030638674,-420.60711233,0.00010601,2]
[353772358,1740030638682,-1496.56,0.00010601,2]
[353772360,1740030638691,-150.0,0.00010603,2]
[353772362,1740030638700,-9999.99,0.00010603,2]
[353772364,1740030638709,-150.99,0.00010603,2]
[353772366,1740030638717,-150.99,0.00010603,2]
[353772368,1740030638726,-999.99,0.00010603,2]
[353772369,1740030638734,-299.99,0.00010603,2]
[353772371,1740030638743,-3470.91,0.00010608,2]
[353772373,1740030638751,-173.14,0.00010647,2]
[353772375,1740030638759,-1000.0,0.00010649,2]
[353772376,1740030638768,-500.0,0.00010654,2]
[353772378,1740030638777,-1905.07,0.00010684,2]
[353772380,1740030638785,-751.71,0.00010716,2]
[353772382,1740030638793,-156.69,0.00010791,2]
[353772384,1740030638802,-150.0,0.00010795,2]
[353772386,1740030638811,-150.0,0.00010795,2]
[353772387,1740030638820,-300.84,0.00010795,2]
[353772389,1740030638828,-987.13,0.00010795,2]
[353772391,1740030638837,-888.11,0.00010795,2]
[353772393,1740030638845,-150.0,0.00010795,2]
[353772394,1740030638854,-150.0,0.00010795,2]
[353772396,1740030638863,-150.0,0.00010795,2]
[353772398,1740030638871,-150.0,0.00010795,2]
[353772400,1740030638880,-150.0,0.000108,2]
[353772402,1740030638889,-150.0,0.000108,2]
[353772403,1740030638897,-987.13,0.000108,2]
[353772405,1740030638907,-150.0,0.000108,2]
[353772407,1740030638916,-150.0,0.000108,2]
[353772409,1740030638925,-150.0,0.000108,2]
[353772410,1740030638934,-987.13,0.000108,2]
[353772412,1740030638942,-150.0,0.000108,2]
[353772414,1740030638951,-865.1,0.00010824,2]
[353772416,1740030638960,-156.69,0.00010845,2]
[353772418,1740030638969,-156.69,0.00010899,2]
[353772419,1740030638978,-150.0,0.000109,2]
[353772421,1740030638987,-150.0,0.000109,2]
[353772423,1740030638995,-150.0,0.000109,2]
[353772425,1740030639004,-477.22318586,0.000109,2]
[353772427,1740030639014,-350.24826432,0.00010943,2]
[353772429,1740030639022,-156.69,0.00010953,2]
[353772430,1740030639032,-500.0,0.00010958,2]
[353772432,1740030639041,-500.0,0.00010958,2]
[353772434,1740030639050,-544.20482213,0.00010958,2]
[353772436,1740030639059,-517.85,0.00010958,2]
[353772438,1740030639068,-500.0,0.00010958,2]
[353772440,1740030639076,-150.5009282,0.00010958,2]
[353772441,1740030639085,-503.14336404,0.00010958,2]
[353772443,1740030639093,-500.0,0.00010958,2]
[353772445,1740030639102,-500.0,0.00010958,2]
[353772447,1740030639111,-440.30231834,0.00010958,2]
[353772449,1740030639120,-349.32200287,0.00010958,2]
[353772451,1740030639129,-500.0,0.00010958,2]
[353772453,1740030639138,-474.11867697,0.00010958,2]
[353772454,1740030639148,-500.0,0.00010958,2]
[353772456,1740030639158,-189.5,0.00010959,2]
[353772458,1740030639167,-500.0,0.00010999,2]
[353772460,1740030639176,-550.0,0.00011,2]
[353772462,1740030639184,-500.0,0.00011,2]
[353772463,1740030639192,-156.69,0.00011007,2]
[353772465,1740030639202,-500.0,0.00011041,2]
[353772467,1740030639210,-533.49352873,0.00011041,2]
[353772469,1740030639220,-517.85,0.00011041,2]
[353772471,1740030639229,-502.9350336,0.00011041,2]
[353772473,1740030639238,-500.0,0.00011041,2]
[353772474,1740030639247,-500.0,0.00011041,2]
[353772476,1740030639256,-631.90250887,0.00011041,2]
[353772478,1740030639264,-500.0,0.00011041,2]
[353772480,1740030639274,-500.0,0.00011123,2]
[353772482,1740030639282,-517.85,0.00011123,2]
[353772483,1740030639291,-500.0,0.00011123,2]
[353772485,1740030639300,-368.97139428,0.00011123,2]
[353772487,1740030639309,-495.56480587,0.00011123,2]
[353772488,1740030639318,-174.57265905,0.00011205,2]
[353772490,1740030639328,-517.85,0.00011205,2]
[353772492,1740030639337,-500.0,0.00011205,2]
[353772494,1740030639347,-1449.82,0.00011219,2]
[353772496,1740030639356,-150.0,0.00011219,2]
[353772498,1740030639364,-150.0,0.00011219,2]
[353772500,1740030639373,-150.0,0.00011219,2]
[353772502,1740030639382,-282.30066397,0.00011219,2]
[353772504,1740030639393,-150.96917946,0.00011219,2]
[353772506,1740030639403,-477.22318558,0.00011245,2]
[353772508,1740030639415,-517.85,0.00011287,2]
[353772509,1740030639425,-500.0,0.00011287,2]
[353772511,1740030639434,-300.42,0.0001135,2]
[353772513,1740030639444,-517.85,0.00011369,2]
[353772515,1740030639453,-500.0,0.00011369,2]
[353772517,1740030639462,-278.3,0.00011376,2]
[353772518,1740030639471,-150.0,0.00011427,2]
[353772520,1740030639482,-517.85,0.00011452,2]
[353772522,1740030639491,-500.0,0.00011452,2]
[353772524,1740030639500,-1157.19,0.00011507,2]
[353772526,1740030639509,-3371.54746475,0.0001153,2]
[353772528,1740030639518,-517.85,0.00011534,2]
[353772530,1740030639526,-500.0,0.00011534,2]
[353772532,1740030639535,-477.22318558,0.0001159,2]
[353772533,1740030639544,-517.85,0.00011616,2]
[353772535,1740030639554,-500.0,0.00011616,2]
[353772537,1740030639562,-150.0,0.00011635,2]
[353772539,1740030639571,-517.85,0.00011698,2]
[353772541,1740030639580,-500.0,0.00011698,2]
[353772542,1740030639589,-150.0,0.00011699,2]
[353772543,1740030639598,-150.0,0.00011699,2]
[353772544,1740030639607,-150.0,0.00011699,2]
[353772545,1740030639616,-150.0,0.00011699,2]
[353772546,1740030639625,-150.0,0.00011726,2]
[353772547,1740030639634,-150.0,0.00011726,2]
[353772548,1740030639643,-150.0,0.00011726,2]